[Event "BL 2018-19"]
[Site "Berlin"]
[Date "2019.03.01"]
[Round "9.1"]
[White "Almasi, Zoltan"]
[Black "Piorun, Kacper"]
[Result "1/2-1/2"]
[ECO "A35"]
[WhiteElo "2682"]
[BlackElo "2634"]
[Annotator "ChessBase"]
[PlyCount "84"]
[EventDate "2018.11.10"]
[EventType "team-tourn"]
[EventCountry "GER"]
[SourceTitle "playchess.com"]
[Source "ChessBase"]
[SourceQuality "1"]
[WhiteTeam "Dresden"]
[BlackTeam "SF Berlin"]
[TimeControl "40/6000+30:3000+30"]

1. Nf3 {[%emt 0:00:00]} Nf6 {[%emt 0:00:00]} 2. c4 {[%emt 0:00:00]} c5 {[%emt 0:00:00]} 3. Nc3 {[%emt 0:00:22]} Nc6 {[%emt 0:00:06]} 4. g3 {[%emt 0:00:31]} d5 {[%emt 0:00:55]} 5. cxd5 {[%emt 0:00:21]} Nxd5 {[%emt 0:00:06]} 6. Bg2 {[%emt 0:00:10]} g6 {[%emt 0:00:07]} 7. Qb3 {[%emt 0:12:18]} e6 {[%emt 0:07:49]} 8. O-O {[%emt 0:14:27]} Bg7 {[%emt 0:05:16]} 9. Qb5 {[%emt 0:00:14]} Qb6 {[%emt 0:04:51]} 10. Qc4 {[%emt 0:00:42]} O-O {[%emt 0:05:54]} 11. d3 {[%emt 0:02:08]} Nxc3 {[%emt 0:20:46]} 12. bxc3 {[%emt 0:01:12]} Na5 {[%emt 0:05:57]} 13. Qh4 {[%emt 0:05:39]} Bd7 {[%emt 0:11:18]} 14. Bf4 {[%emt 0:25:53]} f6 {[%emt 0:09:08]} 15. Rab1 {[%emt 0:00:06]} Qa6 {[%emt 0:00:20]} 16. Bh6 {[%emt 0:01:30]} Bxh6 {[%emt 0:01:23]} 17. Qxh6 {[%emt 0:00:06]} Qd6 {[%emt 0:05:09]} 18. d4 {[%emt 0:07:55]} Bc6 {[%emt 0:05:10]} 19. Rfd1 {[%emt 0:00:35]} Rad8 {[%emt 0:02:03]} 20. h4 {[%emt 0:05:35]} Qe7 {[%emt 0:06:39]} 21. Qf4 {[%emt 0:13:18]} cxd4 {[%emt 0:05:02]} 22. cxd4 {[%emt 0:00:18]} Nc4 {[%emt 0:00:38]} 23. Nd2 {[%emt 0:03:31]} Nxd2 {[%emt 0:05:22]} 24. Rxd2 {[%emt 0:00:04]} Bxg2 {[%emt 0:02:19]} 25. Kxg2 {[%emt 0:00:04]} Rf7 {[%emt 0:00:52]} 26. Qf3 {[%emt 0:07:26]} Qd7 {[%emt 0:01:27]} 27. Rc1 {[%emt 0:00:59]} Qd5 {[%emt 0:00:53]} 28. e4 {[%emt 0:00:32]} Qa5 {[%emt 0:00:16]} 29. Qe3 {[%emt 0:03:42]} Qb6 {[%emt 0:02:47]} 30. Rc5 {[%emt 0:01:09]} Rc7 {[%emt 0:01:20]} 31. Rxc7 {[%emt 0:03:14]} Qxc7 {[%emt 0:00:01]} 32. d5 {[%emt 0:01:04]} exd5 {[%emt 0:01:04]} 33. exd5 {[%emt 0:00:01]} b6 {[%emt 0:00:14]} 34. Qe6+ {[%emt 0:01:15]} Kg7 {[%emt 0:00:08]} 35. d6 {[%emt 0:00:30]} Qc6+ {[%emt 0:00:05]} 36. f3 {[%emt 0:00:21]} Re8 {[%emt 0:00:38]} 37. Qg4 {[%emt 0:00:12]} Qb5 {[%emt 0:01:21]} 38. Qd4 {[%emt 0:01:02]} Re2+ {[%emt 0:00:41]} 39. Rxe2 {[%emt 0:00:21]} Qxe2+ {[%emt 0:00:07]} 40. Kg1 {[%emt 0:00:11]} Qe1+ {[%emt 0:00:15]} 41. Kh2 {[%emt 0:50:42]} Qe2+ {[%emt 0:50:10]} 42. Kg1 {[%emt 0:00:00]} Qe1+ {[%emt 0:00:00]} 1/2-1/2

[Event "BL 2018-19"]
[Site "Berlin"]
[Date "2019.03.01"]
[Round "9.1"]
[White "Leko, Peter"]
[Black "Caruana, Fabiano"]
[Result "1-0"]
[ECO "D37"]
[WhiteElo "2679"]
[BlackElo "2828"]
[Annotator "ChessBase"]
[PlyCount "121"]
[EventDate "2018.11.10"]
[EventType "team-tourn"]
[EventCountry "GER"]
[SourceTitle "playchess.com"]
[Source "ChessBase"]
[SourceQuality "1"]
[WhiteTeam "SF Deizisau"]
[BlackTeam "Baden-Baden"]
[TimeControl "40/6000+30:3000+30"]

1. d4 {[%emt 0:00:00]} Nf6 {[%emt 0:00:00]} 2. c4 {[%emt 0:00:00]} e6 {[%emt 0:00:00]} 3. Nf3 {[%emt 0:00:00]} d5 {[%emt 0:00:00]} 4. Nc3 {[%emt 0:00:05]} a6 {[%emt 0:00:13]} 5. cxd5 {[%emt 0:00:31]} exd5 {[%emt 0:00:07]} 6. Bg5 {[%emt 0:00:08]} Be6 {[%emt 0:00:13]} 7. e3 {[%emt 0:00:16]} Nbd7 {[%emt 0:00:12]} 8. Bd3 {[%emt 0:01:22]} h6 {[%emt 0:00:12]} 9. Bf4 {[%emt 0:07:59]} g5 {[%emt 0:00:12]} 10. Bg3 {[%emt 0:01:46]} Nh5 {[%emt 0:00:13]} 11. Be5 {[%emt 0:08:35]} Nhf6 {[%emt 0:00:50]} 12. Bg3 {[%emt 0:05:25]} Nh5 {[%emt 0:00:47]} 13. Ne2 {[%emt 0:12:41]} Nxg3 {[%emt 0:12:45]} 14. Nxg3 {[%emt 0:01:36]} g4 {[%emt 0:00:35]} 15. Nd2 {[%emt 0:06:27]} h5 {[%emt 0:01:26]} 16. Qc2 {[%emt 0:10:30]} c5 {[%emt 0:18:25]} 17. dxc5 {[%emt 0:07:48]} Nxc5 {[%emt 0:01:43]} 18. O-O {[%emt 0:12:09]} Qf6 {[%emt 0:06:47]} 19. Nb3 {[%emt 0:00:55]} Nxd3 {[%emt 0:15:58]} 20. Qxd3 {[%emt 0:00:05]} h4 {[%emt 0:05:05]} 21. Ne2 {[%emt 0:00:09]} Bd6 {[%emt 0:00:00]} 22. Nbd4 {[%emt 0:01:26]} Rc8 {[%emt 0:09:15]} 23. Rad1 {[%emt 0:06:24]} Rc7 {[%emt 0:09:39]} 24. Qd2 {[%emt 0:09:23]} Qe5 {[%emt 0:13:35]} 25. f4 {[%emt 0:04:01]} gxf3 {[%emt 0:00:50]} 26. Nxf3 {[%emt 0:00:07]} Qf5 {[%emt 0:03:02]} 27. Nfd4 {[%emt 0:04:32]} Qe5 {[%emt 0:05:23]} 28. Nf4 {[%emt 0:01:14]} Qe4 {[%emt 0:00:59]} 29. Rf2 {[%emt 0:02:18]} h3 {[%emt 0:00:51]} 30. g3 {[%emt 0:01:02]} Kd7 {[%emt 0:02:17]} 31. Nf3 {[%emt 0:02:33]} Bxf4 {[%emt 0:00:54]} 32. exf4 {[%emt 0:00:10]} Kc8 {[%emt 0:00:47]} 33. Re1 {[%emt 0:00:43]} Qf5 {[%emt 0:01:01]} 34. Qd4 {[%emt 0:01:40]} Rd8 {[%emt 0:01:53]} 35. Qa7 {[%emt 0:00:07]} d4 {[%emt 0:00:47]} 36. Nxd4 {[%emt 0:01:16]} Qd5 {[%emt 0:00:14]} 37. Nxe6 {[%emt 0:02:25]} fxe6 {[%emt 0:00:04]} 38. a3 {[%emt 0:00:28]} Rc6 {[%emt 0:00:41]} 39. Rfe2 {[%emt 0:00:28]} Qb3 {[%emt 0:00:55]} 40. Qf2 {[%emt 0:00:43]} Rd3 {[%emt 0:00:30]} 41. Qf1 {[%emt 0:07:23]} Qb6+ {[%emt 0:09:22]} 42. Kh1 {[%emt 0:03:42]} Qd4 {[%emt 0:00:36]} 43. Qxh3 {[%emt 0:05:36]} Rd2 {[%emt 0:13:37]} 44. Qg4 {[%emt 0:19:11]} Qd5+ {[%emt 0:12:46]} 45. Kg1 {[%emt 0:00:10]} Qd4+ {[%emt 0:02:12]} 46. Kf1 {[%emt 0:03:18]} Qd3 {[%emt 0:01:35]} 47. Qg8+ {[%emt 0:03:49]} Kc7 {[%emt 0:01:06]} 48. Qg7+ {[%emt 0:00:09]} Kb6 {[%emt 0:04:14]} 49. Qe5 {[%emt 0:00:53]} Rcc2 {[%emt 0:00:44]} 50. Kf2 {[%emt 0:02:23]} Rxb2 {[%emt 0:01:40]} 51. Qxb2+ {[%emt 0:03:05]} Rxb2 {[%emt 0:00:05]} 52. Rxb2+ {[%emt 0:00:05]} Ka5 {[%emt 0:00:36]} 53. Re3 {[%emt 0:00:08]} Qd4 {[%emt 0:01:55]} 54. Rbe2 {[%emt 0:00:14]} Ka4 {[%emt 0:00:16]} 55. Kg2 {[%emt 0:01:29]} Qd5+ {[%emt 0:00:14]} 56. Rf3 {[%emt 0:00:12]} b5 {[%emt 0:00:14]} 57. g4 {[%emt 0:00:31]} a5 {[%emt 0:00:15]} 58. Re5 {[%emt 0:01:43]} Qd1 {[%emt 0:02:08]} 59. Rxe6 {[%emt 0:02:18]} b4 {[%emt 0:00:09]} 60. axb4 {[%emt 0:00:17]} axb4 {[%emt 0:00:06]} 61. Ree3 {[%emt 0:00:21]} 1-0

[Event "BL 2018-19"]
[Site "Berlin"]
[Date "2019.03.01"]
[Round "9.2"]
[White "Vachier-Lagrave, Maxime"]
[Black "Kamsky, Gata"]
[Result "0-1"]
[ECO "B46"]
[WhiteElo "2775"]
[BlackElo "2666"]
[Annotator "ChessBase"]
[PlyCount "88"]
[EventDate "2018.11.10"]
[EventType "team-tourn"]
[EventCountry "GER"]
[SourceTitle "playchess.com"]
[Source "ChessBase"]
[SourceQuality "1"]
[WhiteTeam "Baden-Baden"]
[BlackTeam "SF Deizisau"]
[TimeControl "40/6000+30:3000+30"]

1. e4 {[%emt 0:00:00]} c5 {[%emt 0:02:05]} 2. Nf3 {[%emt 0:00:00]} Nc6 {[%emt 0:00:16]} 3. Nc3 {[%emt 0:00:00]} e6 {[%emt 0:06:32]} 4. d4 {[%emt 0:00:00]} cxd4 {[%emt 0:00:06]} 5. Nxd4 {[%emt 0:00:00]} a6 {[%emt 0:00:04]} 6. Be3 {[%emt 0:03:56]} Nf6 {[%emt 0:03:07]} 7. Bd3 {[%emt 0:04:10]} Qc7 {[%emt 0:08:12]} 8. O-O {[%emt 0:00:29]} h5 {[%emt 0:03:42]} 9. h3 {[%emt 0:03:59]} b5 {[%emt 0:02:45]} 10. Qd2 {[%emt 0:14:48]} Bb7 {[%emt 0:01:16]} 11. Rae1 {[%emt 0:00:39]} Ne5 {[%emt 0:06:26]} 12. f4 {[%emt 0:00:57]} Nc4 {[%emt 0:00:50]} 13. Bxc4 {[%emt 0:05:08]} Qxc4 {[%emt 0:00:06]} 14. e5 {[%emt 0:01:09]} Ne4 {[%emt 0:17:58]} 15. Nxe4 {[%emt 0:00:51]} Bxe4 {[%emt 0:00:05]} 16. b3 {[%emt 0:14:24]} Qd5 {[%emt 0:10:39]} 17. Rd1 {[%emt 0:04:07]} Rc8 {[%emt 0:13:10]} 18. Qf2 {[%emt 0:09:12]} Qb7 {[%emt 0:03:02]} 19. Rd2 {[%emt 0:17:57]} Bb4 {[%emt 0:04:01]} 20. Re2 {[%emt 0:00:03]} f5 {[%emt 0:01:57]} 21. exf6 {[%emt 0:03:37]} gxf6 {[%emt 0:00:06]} 22. f5 {[%emt 0:00:04]} e5 {[%emt 0:03:24]} 23. Qg3 {[%emt 0:05:22]} d5 {[%emt 0:07:31]} 24. Ne6 {[%emt 0:03:21]} Qf7 {[%emt 0:00:18]} 25. Bd2 {[%emt 0:02:55]} Rg8 {[%emt 0:01:26]} 26. Qe3 {[%emt 0:00:21]} Rxc2 {[%emt 0:04:50]} 27. Qb6 {[%emt 0:01:08]} Qd7 {[%emt 0:00:10]} 28. Nc7+ {[%emt 0:01:06]} Rxc7 {[%emt 0:02:05]} 29. Bxb4 {[%emt 0:00:08]} Qc6 {[%emt 0:00:28]} 30. Qe3 {[%emt 0:02:18]} a5 {[%emt 0:03:12]} 31. Bxa5 {[%emt 0:01:08]} Qc5 {[%emt 0:00:08]} 32. Qxc5 {[%emt 0:00:32]} Rxc5 {[%emt 0:00:04]} 33. Bb4 {[%emt 0:02:10]} Rc6 {[%emt 0:00:56]} 34. Rb2 {[%emt 0:00:56]} Kf7 {[%emt 0:02:07]} 35. a4 {[%emt 0:00:47]} bxa4 {[%emt 0:00:25]} 36. bxa4 {[%emt 0:00:06]} d4 {[%emt 0:00:54]} 37. a5 {[%emt 0:00:33]} d3 {[%emt 0:00:42]} 38. Rff2 {[%emt 0:02:05]} Rc1+ {[%emt 0:00:24]} 39. Kh2 {[%emt 0:00:05]} Rc2 {[%emt 0:00:24]} 40. a6 {[%emt 0:00:49]} Ra8 {[%emt 0:00:53]} 41. g4 {[%emt 0:51:07]} h4 {[%emt 0:50:59]} 42. Be1 {[%emt 0:01:02]} Rxa6 {[%emt 0:00:19]} 43. Rd2 {[%emt 0:00:07]} Ra1 {[%emt 0:00:31]} 44. Bxh4 {[%emt 0:00:17]} Rd1 {[%emt 0:00:09]} 0-1

[Event "BL 2018-19"]
[Site "Berlin"]
[Date "2019.03.01"]
[Round "9.2"]
[White "Vocaturo, Daniele"]
[Black "Nisipeanu, Liviu-Dieter"]
[Result "1/2-1/2"]
[ECO "C11"]
[WhiteElo "2630"]
[BlackElo "2674"]
[Annotator "ChessBase"]
[PlyCount "56"]
[EventDate "2018.11.10"]
[EventType "team-tourn"]
[EventCountry "GER"]
[SourceTitle "playchess.com"]
[Source "ChessBase"]
[SourceQuality "1"]
[WhiteTeam "SF Berlin"]
[BlackTeam "Dresden"]
[TimeControl "40/6000+30:3000+30"]

1. e4 {[%emt 0:00:00]} e6 {[%emt 0:00:00]} 2. d4 {[%emt 0:00:09]} d5 {[%emt 0:00:02]} 3. Nc3 {[%emt 0:00:27]} Nf6 4. Bg5 dxe4 {[%emt 0:01:13]} 5. Nxe4 {[%emt 0:00:53]} Nbd7 {[%emt 0:00:00]} 6. Nf3 {[%emt 0:04:56]} h6 {[%emt 0:00:00]} 7. Nxf6+ {[%emt 0:00:30]} Nxf6 {[%emt 0:00:22]} 8. Be3 {[%emt 0:01:57]} Bd6 {[%emt 0:09:10]} 9. Bd3 O-O {[%emt 0:00:13]} 10. Qe2 {[%emt 0:05:34]} b6 {[%emt 0:00:46]} 11. O-O-O {[%emt 0:07:38]} Bb7 {[%emt 0:14:20]} 12. Ne5 {[%emt 0:05:05]} Nd5 {[%emt 0:09:48]} 13. Bd2 {[%emt 0:08:21]} Qh4 {[%emt 0:05:22]} 14. Nf3 {[%emt 0:04:59]} Qf6 {[%emt 0:03:29]} 15. Qe4 Qf5 16. Qh4 {[%emt 0:04:47]} Qf6 {[%emt 0:01:40]} 17. Qe4 Qf5 {[%emt 0:00:00]} 18. Qxf5 {[%emt 0:10:14]} exf5 {[%emt 0:04:23]} 19. Bxf5 Nf4 20. Bxf4 {[%emt 0:05:26]} Bxf4+ {[%emt 0:00:36]} 21. Kb1 {[%emt 0:00:19]} g6 {[%emt 0:10:41]} 22. Bd3 {[%emt 0:03:49]} Rad8 {[%emt 0:02:20]} 23. c3 {[%emt 0:01:28]} c5 {[%emt 0:01:32]} 24. dxc5 {[%emt 0:03:55]} bxc5 {[%emt 0:07:19]} 25. b3 {[%emt 0:15:55]} Rd6 {[%emt 0:06:20]} 26. Be2 Rfd8 {[%emt 0:00:06]} 27. Rxd6 {[%emt 0:04:19]} Rxd6 {[%emt 0:04:02]} 28. Rd1 Rxd1+ 1/2-1/2

[Event "BL 2018-19"]
[Site "Berlin"]
[Date "2019.03.01"]
[Round "9.4"]
[White "Tomczak, Jacek"]
[Black "Neef, Maximilian"]
[Result "1/2-1/2"]
[ECO "C11"]
[WhiteElo "2633"]
[BlackElo "2479"]
[Annotator "ChessBase"]
[PlyCount "50"]
[EventDate "2018.11.10"]
[EventType "team-tourn"]
[EventCountry "GER"]
[SourceTitle "playchess.com"]
[Source "ChessBase"]
[SourceQuality "1"]
[WhiteTeam "SF Berlin"]
[BlackTeam "Dresden"]
[TimeControl "40/6000+30:3000+30"]

1. e4 e6 2. d4 d5 3. Nc3 Nf6 4. Bg5 dxe4 5. Nxe4 Be7 6. Bxf6 Bxf6 7. Nf3 O-O {[%emt 0:00:55]} 8. Nxf6+ {[%emt 0:26:31]} Qxf6 {[%emt 0:00:14]} 9. Qd3 {[%emt 0:00:06]} Nd7 {[%emt 0:16:01]} 10. Qe4 {[%emt 0:14:11]} Qg6 {[%emt 0:03:04]} 11. Qxg6 {[%emt 0:12:36]} hxg6 {[%emt 0:00:10]} 12. h4 {[%emt 0:00:19]} Nf6 {[%emt 0:08:21]} 13. Ne5 {[%emt 0:06:33]} Rd8 {[%emt 0:06:20]} 14. Rd1 {[%emt 0:01:20]} b6 {[%emt 0:02:20]} 15. Nc6 {[%emt 0:05:20]} Rd7 {[%emt 0:16:52]} 16. Be2 {[%emt 0:01:46]} Bb7 {[%emt 0:02:57]} 17. Bf3 {[%emt 0:00:32]} Kh7 {[%emt 0:00:33]} 18. Rh3 {[%emt 0:02:15]} Rd6 {[%emt 0:05:38]} 19. Ne5 {[%emt 0:01:02]} Bxf3 {[%emt 0:00:21]} 20. Rxf3 {[%emt 0:00:19]} Kg8 {[%emt 0:00:15]} 21. Rc3 {[%emt 0:28:51]} Nd5 {[%emt 0:09:17]} 22. Rf3 {[%emt 0:00:07]} Rf8 {[%emt 0:02:45]} 23. a3 {[%emt 0:01:29]} Ne7 {[%emt 0:01:25]} 24. Rc3 {[%emt 0:01:52]} Rc8 {[%emt 0:02:08]} 25. g3 {[%emt 0:00:45]} Rd5 {[%emt 0:09:14]} 1/2-1/2

[Event "BL 2018-19"]
[Site "Berlin"]
[Date "2019.03.01"]
[Round "9.5"]
[White "Boensch, Uwe"]
[Black "Kraemer, Martin"]
[Result "0-1"]
[ECO "A05"]
[WhiteElo "2553"]
[BlackElo "2582"]
[Annotator "ChessBase"]
[PlyCount "82"]
[EventDate "2018.11.10"]
[EventType "team-tourn"]
[EventCountry "GER"]
[SourceTitle "playchess.com"]
[Source "ChessBase"]
[SourceQuality "1"]
[WhiteTeam "Dresden"]
[BlackTeam "SF Berlin"]
[TimeControl "40/6000+30:3000+30"]

1. Nf3 {[%emt 0:00:00]} Nf6 {[%emt 0:00:00]} 2. c4 e6 3. Nc3 {[%emt 0:01:14]} d5 {[%emt 0:00:45]} 4. d4 dxc4 {[%emt 0:03:44]} 5. e4 {[%emt 0:03:27]} Bb4 6. Bxc4 {[%emt 0:03:22]} Nxe4 {[%emt 0:01:18]} 7. O-O {[%emt 0:00:20]} Nxc3 {[%emt 0:00:03]} 8. bxc3 {[%emt 0:00:07]} Be7 {[%emt 0:00:00]} 9. Re1 {[%emt 0:05:48]} O-O {[%emt 0:15:08]} 10. Bf4 {[%emt 0:17:46]} Nc6 {[%emt 0:10:03]} 11. h4 Bd6 {[%emt 0:14:04]} 12. Bd2 {[%emt 0:13:36]} Re8 13. a4 {[%emt 0:12:56]} h6 {[%emt 0:05:58]} 14. a5 {[%emt 0:06:19]} Bd7 {[%emt 0:05:07]} 15. Bd3 {[%emt 0:20:02]} e5 {[%emt 0:13:44]} 16. d5 {[%emt 0:01:43]} Nb8 {[%emt 0:02:00]} 17. Qb1 {[%emt 0:15:00]} Na6 {[%emt 0:01:42]} 18. c4 {[%emt 0:02:23]} Nc5 {[%emt 0:00:36]} 19. Bh7+ {[%emt 0:00:22]} Kh8 {[%emt 0:00:21]} 20. Bc3 {[%emt 0:00:20]} Qf6 21. Bc2 {[%emt 0:00:52]} Bg4 {[%emt 0:04:30]} 22. Re3 Bxf3 {[%emt 0:04:15]} 23. Rxf3 {[%emt 0:00:31]} Qxh4 {[%emt 0:00:07]} 24. Qf1 {[%emt 0:01:29]} e4 {[%emt 0:01:53]} 25. Rh3 {[%emt 0:00:11]} Qg5 26. Rd1 {[%emt 0:03:20]} f5 {[%emt 0:01:46]} 27. Qe2 Be5 {[%emt 0:01:38]} 28. Bb4 {[%emt 0:02:06]} b6 {[%emt 0:00:18]} 29. Bxc5 {[%emt 0:00:32]} bxc5 {[%emt 0:00:04]} 30. Ba4 {[%emt 0:00:08]} Re7 {[%emt 0:00:48]} 31. Qe3 Qxe3 {[%emt 0:03:48]} 32. fxe3 {[%emt 0:00:27]} Rb8 {[%emt 0:00:01]} 33. Bb5 {[%emt 0:00:51]} Kh7 {[%emt 0:05:21]} 34. a6 {[%emt 0:00:23]} g5 {[%emt 0:01:43]} 35. Kf2 {[%emt 0:00:47]} f4 {[%emt 0:03:20]} 36. Rdh1 {[%emt 0:00:02]} Rb6 {[%emt 0:00:11]} 37. Rh5 {[%emt 0:00:14]} Rf6 {[%emt 0:02:59]} 38. Ke2 {[%emt 0:01:45]} fxe3 {[%emt 0:00:12]} 39. Rf1 {[%emt 0:00:35]} Rxf1 {[%emt 0:00:20]} 40. Kxf1 {[%emt 0:00:02]} Rf7+ {[%emt 0:00:04]} 41. Ke2 {[%emt 0:01:06]} Bd4 {[%emt 0:00:00]} 0-1

[Event "BL 2018-19"]
[Site "Berlin"]
[Date "2019.03.01"]
[Round "9.6"]
[White "Wojtaszek, Radoslaw"]
[Black "Keymer, Vincent"]
[Result "1-0"]
[ECO "D30"]
[WhiteElo "2749"]
[BlackElo "2502"]
[Annotator "ChessBase"]
[PlyCount "61"]
[EventDate "2018.11.10"]
[EventType "team-tourn"]
[EventCountry "GER"]
[SourceTitle "playchess.com"]
[Source "ChessBase"]
[SourceQuality "1"]
[WhiteTeam "Baden-Baden"]
[BlackTeam "SF Deizisau"]
[TimeControl "40/6000+30:3000+30"]

1. d4 {[%emt 0:00:00]} d5 {[%emt 0:00:00]} 2. c4 {[%emt 0:00:00]} e6 {[%emt 0:00:00]} 3. Nf3 {[%emt 0:00:00]} Nf6 {[%emt 0:00:00]} 4. g3 {[%emt 0:00:00]} Bb4+ {[%emt 0:00:00]} 5. Bd2 {[%emt 0:00:04]} Be7 {[%emt 0:00:00]} 6. Bg2 {[%emt 0:00:09]} O-O {[%emt 0:00:02]} 7. O-O {[%emt 0:00:13]} c6 {[%emt 0:00:08]} 8. Qc2 {[%emt 0:00:39]} Nbd7 {[%emt 0:00:21]} 9. a4 {[%emt 0:00:23]} b6 {[%emt 0:11:24]} 10. b4 {[%emt 0:09:31]} Bb7 {[%emt 0:06:41]} 11. Na3 {[%emt 0:05:30]} c5 {[%emt 0:09:54]} 12. Qb2 {[%emt 0:09:54]} dxc4 {[%emt 0:21:19]} 13. Nxc4 {[%emt 0:03:35]} cxd4 {[%emt 0:06:00]} 14. Nxd4 {[%emt 0:03:30]} Bxg2 {[%emt 0:01:43]} 15. Kxg2 {[%emt 0:00:07]} Rc8 {[%emt 0:00:18]} 16. Rac1 {[%emt 0:03:59]} Ne4 {[%emt 0:14:56]} 17. Be3 {[%emt 0:07:17]} Nb8 {[%emt 0:11:27]} 18. f3 {[%emt 0:03:46]} Nd6 {[%emt 0:00:54]} 19. Nxd6 {[%emt 0:05:31]} Qxd6 {[%emt 0:00:26]} 20. Nb5 {[%emt 0:00:08]} Qd7 {[%emt 0:03:22]} 21. Rfd1 {[%emt 0:04:36]} Qb7 {[%emt 0:00:06]} 22. Bd4 {[%emt 0:00:05]} f6 {[%emt 0:04:03]} 23. Qb3 {[%emt 0:04:21]} Kf7 24. Be3 {[%emt 0:16:18]} Rxc1 {[%emt 0:05:09]} 25. Rxc1 {[%emt 0:00:08]} Nc6 {[%emt 0:01:43]} 26. Qc2 {[%emt 0:02:01]} Nxb4 {[%emt 0:00:10]} 27. Qxh7 {[%emt 0:00:05]} Na6 {[%emt 0:03:49]} 28. Rc4 {[%emt 0:02:42]} Rg8 {[%emt 0:03:43]} 29. Rg4 {[%emt 0:02:35]} Kf8 {[%emt 0:00:27]} 30. Bh6 {[%emt 0:01:23]} Bc5 {[%emt 0:02:32]} 31. Bxg7+ {[%emt 0:00:12]} 1-0

[Event "BL 2018-19"]
[Site "Berlin"]
[Date "2019.03.01"]
[Round "9.6"]
[White "Schreiner, Peter"]
[Black "Maiwald, Jens-Uwe"]
[Result "1-0"]
[ECO "A41"]
[WhiteElo "2480"]
[BlackElo "2443"]
[Annotator "ChessBase"]
[PlyCount "119"]
[EventDate "2018.11.10"]
[EventType "team-tourn"]
[EventCountry "GER"]
[SourceTitle "playchess.com"]
[Source "ChessBase"]
[SourceQuality "1"]
[WhiteTeam "SF Berlin"]
[BlackTeam "Dresden"]
[TimeControl "40/6000+30:3000+30"]

1. d4 {[%emt 0:00:00]} d6 {[%emt 0:00:00]} 2. g3 {[%emt 0:00:00]} g6 {[%emt 0:00:18]} 3. Bg2 {[%emt 0:00:00]} Bg7 {[%emt 0:00:07]} 4. Nf3 {[%emt 0:00:21]} Nf6 {[%emt 0:00:48]} 5. O-O {[%emt 0:00:33]} O-O {[%emt 0:00:08]} 6. b3 {[%emt 0:03:20]} c6 {[%emt 0:02:01]} 7. Bb2 {[%emt 0:03:39]} Nbd7 {[%emt 0:00:31]} 8. Nbd2 {[%emt 0:03:00]} Qc7 {[%emt 0:08:54]} 9. a4 {[%emt 0:04:19]} Re8 {[%emt 0:03:34]} 10. Re1 {[%emt 0:14:46]} e5 {[%emt 0:11:46]} 11. dxe5 {[%emt 0:00:25]} dxe5 {[%emt 0:00:43]} 12. Nc4 {[%emt 0:02:59]} Bf8 {[%emt 0:12:59]} 13. Qc1 {[%emt 0:04:57]} e4 {[%emt 0:07:14]} 14. Nd4 {[%emt 0:01:17]} b6 {[%emt 0:04:06]} 15. Qf4 {[%emt 0:06:16]} Qxf4 {[%emt 0:01:28]} 16. gxf4 {[%emt 0:00:07]} Nd5 {[%emt 0:10:45]} 17. e3 {[%emt 0:07:14]} Nb4 {[%emt 0:02:23]} 18. Ba3 {[%emt 0:06:17]} Ba6 {[%emt 0:03:12]} 19. Bf1 {[%emt 0:06:06]} Nf6 {[%emt 0:12:51]} 20. Red1 {[%emt 0:12:21]} Bxc4 {[%emt 0:06:43]} 21. Bxc4 {[%emt 0:02:18]} Rac8 {[%emt 0:00:56]} 22. c3 {[%emt 0:02:51]} Nbd5 {[%emt 0:00:36]} 23. Bb2 {[%emt 0:02:37]} Red8 {[%emt 0:04:14]} 24. Ba6 {[%emt 0:08:37]} Rc7 {[%emt 0:00:13]} 25. Bf1 {[%emt 0:00:53]} Bg7 {[%emt 0:04:01]} 26. c4 {[%emt 0:03:41]} Nb4 {[%emt 0:06:32]} 27. Bc3 {[%emt 0:09:19]} a5 {[%emt 0:02:12]} 28. Bh3 {[%emt 0:02:13]} Ra8 {[%emt 0:01:53]} 29. Bxb4 {[%emt 0:01:59]} axb4 {[%emt 0:00:03]} 30. Ra2 {[%emt 0:00:48]} Bf8 {[%emt 0:01:59]} 31. Ne2 {[%emt 0:00:47]} Ne8 {[%emt 0:01:03]} 32. Rad2 {[%emt 0:00:13]} f5 {[%emt 0:00:20]} 33. Bg2 {[%emt 0:01:20]} Nf6 {[%emt 0:00:42]} 34. Nd4 {[%emt 0:00:41]} Kf7 {[%emt 0:00:49]} 35. f3 {[%emt 0:00:15]} exf3 {[%emt 0:00:40]} 36. Nxf3 {[%emt 0:00:37]} Bc5 {[%emt 0:00:19]} 37. Ne5+ {[%emt 0:00:21]} Ke6 {[%emt 0:00:38]} 38. Kf2 {[%emt 0:00:49]} g5 {[%emt 0:00:35]} 39. Nxc6 {[%emt 0:00:31]} gxf4 {[%emt 0:00:36]} 40. Nd4+ {[%emt 0:00:30]} Bxd4 {[%emt 0:00:33]} 41. Rxd4 {[%emt 0:02:42]} fxe3+ {[%emt 0:04:01]} 42. Kxe3 {[%emt 0:01:21]} Rg8 {[%emt 0:00:12]} 43. Bf3 {[%emt 0:06:30]} Ke5 {[%emt 0:04:27]} 44. Re1 {[%emt 0:08:25]} f4+ {[%emt 0:17:50]} 45. Rxf4 {[%emt 0:04:48]} Rg6 {[%emt 0:05:34]} 46. Rd1 {[%emt 0:20:31]} Rh6 {[%emt 0:01:22]} 47. Bg2 {[%emt 0:04:34]} Rxh2 {[%emt 0:11:10]} 48. Kf3 {[%emt 0:01:11]} Rf7 {[%emt 0:01:40]} 49. Re1+ {[%emt 0:01:17]} Kd6 {[%emt 0:00:05]} 50. Rd1+ {[%emt 0:03:16]} Ke5 {[%emt 0:01:47]} 51. a5 {[%emt 0:00:12]} bxa5 {[%emt 0:05:48]} 52. Ra1 {[%emt 0:00:01]} Rh6 {[%emt 0:01:54]} 53. Rxa5+ {[%emt 0:00:16]} Ke6 {[%emt 0:00:14]} 54. Ra6+ {[%emt 0:00:51]} Ke5 {[%emt 0:00:12]} 55. Ra5+ {[%emt 0:00:25]} Ke6 {[%emt 0:00:03]} 56. Rb5 {[%emt 0:00:51]} Rd7 {[%emt 0:00:29]} 57. Rxb4 {[%emt 0:00:30]} Rd3+ {[%emt 0:01:15]} 58. Ke2 {[%emt 0:00:02]} Rg3 {[%emt 0:00:33]} 59. Bf3 {[%emt 0:00:37]} Ke5 {[%emt 0:00:30]} 60. Ke3 {[%emt 0:00:20] Kd5 Ke4+} 1-0